Cogmind - Beta 16 @@@ ROGUE MODE // 2025.12.22 @ 01:06:52 Player: Xcalibur Result: Destroyed by QE-ZH9(x) with Makeshift Spear Performance ------------- Evolutions (0) 0 Regions Visited (4) 800 Robots Destroyed (18) 90 Value Destroyed (402) 402 Prototype IDs (8) 160 Alien Tech Used (0) 0 Bonus (800) 800 TOTAL SCORE: 2252 Bonus ------- Registered with UFD 300 Met Optimus in HQ 500 Cogmind --------- Core Integrity 0/250 Matter 270/300 Energy 71/100 System Corruption 0% Temperature Cool (9) Movement Walking (190) Ox1 Location -7/Scraptown Parts ------- > --- POWER (1) -------- (None) > --- PROPULSION (2) --- Armored Leg > --- UTILITY (2) ------ Large Storage Unit > --- WEAPON (2) ------- LU-1G1's Laser Shovel > --- INVENTORY (15) --- Subdweller Power Source Subdweller Monowheel Overtuned Scrapsphere Scrap Suit Improved Signal Interpreter Surveybot 17 Chip Seismic Detector Medium Insulated Plating Recalibrator Mapping Drone Bay (3/3) Coil Gun Subdweller Shrapnel Launcher DRS Beacon (Ready) Peak State ------------ > --- POWER ------------ Ion Engine > --- PROPULSION ------- Improved Titanium Leg Armored Leg > --- UTILITY ---------- Large Storage Unit Makeshift Light Armor Plating > --- WEAPON ----------- Subdweller Laser Coil Gun > --- INVENTORY -------- Subdweller Power Source Subdweller Monowheel Overtuned Scrapsphere Improved Sensor Array Improved Signal Interpreter Surveybot 17 Chip Seismic Detector Medium Insulated Plating Recalibrator Mapping Drone Bay Coil Gun Subdweller Shrapnel Launcher Scythe DRS Beacon [Rating: 27] Favorites ----------- Power Ion Engine Engine Ion Engine Propulsion Armored Leg Treads Spiked Treads Leg Armored Leg Wheel Compact Wheel Utility Large Storage Unit Device Seismic Detector Storage Large Storage Unit Protection Makeshift Light Armor Plating Weapon Battle Rifle Energy Gun Medium Laser Energy Cannon Light EM Pulse Cannon Ballistic Gun Battle Rifle Launcher Grenade Launcher Special Weapon LU-1G1's Laser Shovel Impact Weapon Hammer Slashing Weapon Scythe Build | -11 -10 -10 -7 -7 ------- Run | Yrd Mat Sub Rec Scr Slots Evolved . | . . . . . Power . | . . . . . Propulsion . | . . . . . Utility . | . . . . . Weapon . | . . . . . Parts Attached 30 | 8 3 9 1 9 Power 5 | 2 . 3 . . Engine 5 | 2 . 3 . . Core . | . . . . . Reactor . | . . . . . Propulsion 6 | 2 . 2 . 2 Treads 2 | 1 . 1 . . Leg 2 | . . . . 2 Wheel 2 | 1 . 1 . . Hover . | . . . . . Flight . | . . . . . Utility 7 | 2 1 2 1 1 Device 3 | 1 . 1 1 . Storage 2 | 1 1 . . . Processor . | . . . . . Hackware . | . . . . . Protection 2 | . . 1 . 1 Artifact . | . . . . . Weapon 12 | 2 2 2 . 6 Energy Gun 3 | 1 1 . . 1 Energy Cannon 1 | . . . . 1 Ballistic Gun 4 | 1 . 1 . 2 Ballistic Cannon . | . . . . . Launcher 1 | . 1 . . . Special Weapon 1 | . . . . 1 Impact Weapon 1 | . . 1 . . Slashing Weapon 1 | . . . . 1 Piercing Weapon . | . . . . . Special Melee Weapon . | . . . . . Unidentified Prototypes 2 | . . 1 . 1 Parts Lost 5 | . . 3 1 1 Power 3 | . . 2 1 . Propulsion . | . . . . . Utility 1 | . . . . 1 Weapon 1 | . . 1 . . Highest Loss Streak 1 | . . 1 1 1 To Critical Strikes . | . . . . . Average Backups 13 | 4 8 14 14 14 Power 1 | . 1 2 2 1 Propulsion 2 | 2 4 3 3 2 Utility 3 | . . . 2 5 Weapon 5 | . 3 7 7 4 Tool/Special . | . . . . . Unused Backups 19 | . . 2 1 16 Power 1 | . . . . 1 Propulsion 5 | . . 2 . 3 Utility 6 | . . . . 6 Weapon 6 | . . . 1 5 Tool/Special 1 | . . . . 1 Average Slot Usage (%) 98 | . 100 95 99 99 Engine 14 | . 14 16 13 13 Treads 6 | . 14 13 14 2 Leg 13 | . . . . 22 Wheel 6 | . 14 13 14 2 Device 5 | . 14 11 6 1 Storage 13 | . 14 13 14 14 Protection 8 | . . . 7 12 Energy Gun 6 | . 13 13 . 2 Energy Cannon 2 | . . . . 3 Ballistic Gun 10 | . 14 11 14 10 Impact Weapon 2 | . . 1 14 2 Slashing Weapon 5 | . . . . 8 Peak Build Rating 27 | 7 8 20 14 27 Average Rating 18 | 5 7 13 13 22 On Entrance 8 | . 7 8 11 14 Avg Prop Armor Cover (%) 10 | 3 9 7 14 13 Naked Turns . | . . . . . Heaviest Build 44 | 14 31 40 33 44 Greatest Support 36 | 20 20 20 16 36 Greatest Overweight (x) 2 | . 1 2 2 2 Average Overweight (x) . | . . 1 1 . Largest Inventory Capacity 15 | 8 15 15 15 15 Average Capacity 14 | 7 11 15 15 15 Most Carried 15 | 6 13 15 15 15 Average Carried 14 | 4 8 14 14 14 Final Capacity 15 | 8 15 15 15 15 Final Carried 15 | 6 13 15 15 14 Class Distribution -------------------- 100% | Mutant Dominant Class ---------------- Mutant | -10/Materials Mutant | -10/Subcaves Mutant | -7/Recycling Mutant | -7/Scraptown Resources | -11 -10 -10 -7 -7 ----------- Run | Yrd Mat Sub Rec Scr Matter Collected 806 | 289 26 369 22 100 Remotely . | . . . . . Salvage Created 513 | 61 122 278 52 . Parts 29 | 7 6 16 . . Haulers Intercepted . | . . . . . Recyclers Shooed . | . . . . . Parts Field Recycled . | . . . . . Retrieved Matter . | . . . . . Parts Self-Destructed 7 | . . 7 . . Prevented . | . . . . . Parts Restored 2 | . . . . 2 Broken 2 | . . . . 2 Kills | -11 -10 -10 -7 -7 ------- Run | Yrd Mat Sub Rec Scr Combat Hostiles Destroyed 14 | . 5 8 1 . Melee 1 | . . 1 . . Guns 9 | . 2 7 . . AOE 3 | . 3 . . . Classes Destroyed 7 | 1 3 2 1 . Tunneler 3 | 3 . . . . Watcher 1 | . 1 . . . Swarmer 7 | . 3 4 . . Grunt 2 | . 2 . . . Sentry 1 | . . . 1 . Cobbler 1 | . . 1 . . Subdweller 4 | . . 4 . . Best Kill Streak 4 | 3 4 4 1 . Combat Bots Only 4 | . 3 4 1 . Max Kills in Single Turn 2 | 1 1 2 1 . Gunslinging 1 | . . 1 . . Exploded 1 | . 1 . . . Melee 1 | . . 1 . . Uniques/NPCs Destroyed . | . . . . . Combat | -11 -10 -10 -7 -7 -------- Run | Yrd Mat Sub Rec Scr Hostile Shots Fired 193 | . 14 58 63 58 Missed 52 | . 3 23 15 11 Hits 141 | . 11 35 48 47 Melee 30 | . . . . 30 Projectile 111 | . 11 35 48 17 Critical Strikes 1 | . . 1 . . Damage Taken 1478 | . 140 472 370 496 Core 262 | . 13 84 61 104 Absorbed by Shields . | . . . . . Ignored by Resistances 56 | . . . . 56 Core Remaining (%) 100 | 100 . . . . Volleys Fired 46 | 3 11 30 . 2 Largest 2 | 2 2 2 . 1 Hottest 80 | 60 70 80 . 60 Shots Fired 79 | 6 19 52 . 2 Gun 65 | 6 16 43 . . Cannon . | . . . . . Launcher 12 | . 3 9 . . Special 2 | . . . . 2 Kinetic 32 | 3 8 21 . . Thermal 35 | 3 8 22 . 2 Explosive 12 | . 3 9 . . Electromagnetic . | . . . . . Robot Hit Streak 27 | 2 9 27 . . Robot Miss Streak 2 | 1 1 2 . 1 Penetration Max . | . . . . . Secondary Targets 2 | . . 2 . . Max Gunslinging Chain 1 | . . 1 . . Shots Hit Robots 67 | 3 14 41 9 . Core Hits 35 | 3 9 23 . . Critical Kills 1 | . . 1 . . Critical Parts Destroyed . | . . . . . Critical Strikes 5 | . 2 3 . . Burn 4 | . 2 2 . . Destroy 1 | . . 1 . . Melee Attacks 16 | . . 5 9 2 Impact 14 | . . 5 9 . Slashing 2 | . . . . 2 Piercing . | . . . . . Sneak Attacks 2 | . . 1 1 . Combat Hostiles . | . . . . . Follow-up Attacks . | . . . . . Damage Inflicted 1317 | 39 316 748 203 11 Guns 676 | 39 159 478 . . Cannons . | . . . . . Explosions 327 | . 157 170 . . Melee 303 | . . 100 203 . Ramming 3 | . . . . 3 Kinetic 326 | 27 73 226 . . Thermal 358 | 12 86 252 . 8 Explosive 327 | . 157 170 . . Electromagnetic . | . . . . . Impact 303 | . . 100 203 . Slashing . | . . . . . Piercing . | . . . . . Highest Corruption . | . . . . . Average Corruption . | . . . . . Corruption Purged . | . . . . . Corruption Blocked . | . . . . . Overload Shots . | . . . . . Overflow Damage 18 | . 5 13 . . Projectiles . | . . . . . Explosions 18 | . 5 13 . . Melee . | . . . . . Knockbacks 1 | . . 1 . . Impact 1 | . . 1 . . Kinetic . | . . . . . Secondary . | . . . . . Self-Inflicted Damage 71 | . 19 52 . . Shots 3 | . 1 2 . . Rammed . | . . . . . Targets Rammed 1 | . . . . 1 Kicked 1 | . . . . 1 Crushed . | . . . . . Highest Temperature 236 | . 63 236 5 9 Average Temperature 40 | . 24 119 4 8 Received Heat Transfer 581 | . 39 404 114 24 Siege Activations . | . . . . . Martial Activations . | . . . . . Shielding Activations . | . . . . . Robots Disrupted . | . . . . . Combat Hostiles . | . . . . . Robots Corrupted 1 | . . . 1 . Combat Hostiles 1 | . . . 1 . Parts Fried 1 | . . . 1 . Impact Corruptions 1 | . . . 1 . Robots Melted . | . . . . . Combat Hostiles . | . . . . . Parts Melted 3 | . . 3 . . Heat Transferred 1320 | 25 407 888 . . Parts Sabotaged . | . . . . . Parts Stolen 4 | . . . . 4 Parts Stripped . | . . . . . Power Chain Reactions . | . . . . . Alert | -11 -10 -10 -7 -7 ------- Run | Yrd Mat Sub Rec Scr Maximum Alert Level . | . . . . . Low Security (%) 100 | 100 100 . 100 . Level 1 . | . . . . . Level 2 . | . . . . . Level 3 . | . . . . . Level 4 . | . . . . . Level 5 . | . . . . . High Security . | . . . . . Max Security . | . . . . . Peak Influence 121 | 15 121 . 50 . Initial . | . . . . . Average 21 | 1 40 . 9 . Influence Increases 710 | 15 241 380 74 . Destroy 0b10 Robot/C 200 | . 100 80 20 . Destroy 0b10 Robot/NC 20 | 15 5 . . . Destroy Leader 22 | . 22 . . . Successful Hack 44 | . 20 . 24 . Select Force Hacks 90 | . 60 . 30 . Destroy Structure 19 | . 19 . . . Lose Combat Pursuer 315 | . 15 300 . . Influence Decreases 710 | 15 130 491 74 . Entered New Map 54 | . . 54 . . Time Decay 626 | 15 130 417 64 . Lost Part 20 | . . 20 . . Purge Threat 10 | . . . 10 . Squads Dispatched 2 | . 2 . . . Investigation 2 | . 2 . . . Extermination . | . . . . . Reinforcement . | . . . . . Assault . | . . . . . Garrison . | . . . . . Intercept . | . . . . . Searches Triggered . | . . . . . Construction Impeded . | . . . . . Haulers Reinforced . | . . . . . Active Scanning Responses . | . . . . . Cargo Convoy Interrupts . | . . . . . Stealth | -11 -10 -10 -7 -7 --------- Run | Yrd Mat Sub Rec Scr Distress Signals . | . . . . . Communications Jammed . | . . . . . Distress Signals . | . . . . . Times Spotted 42 | . 7 18 1 16 Peak Tracking Total 23 | . 4 6 1 23 Tactical Retreats 4 | . 1 3 . . Traps | -11 -10 -10 -7 -7 ------- Run | Yrd Mat Sub Rec Scr Traps Triggered . | . . . . . Indirectly . | . . . . . Trap Hack Attempts . | . . . . . Triggered . | . . . . . Disarmed . | . . . . . Reprogrammed . | . . . . . Reused . | . . . . . Traps Extracted . | . . . . . Installed . | . . . . . Triggered . | . . . . . Most Traps Carried 1 | . . . . 1 Machines | -11 -10 -10 -7 -7 ---------- Run | Yrd Mat Sub Rec Scr Machines Disabled 4 | . . 3 . 1 Max in Single Turn 2 | . . 2 . 1 Machines Repaired . | . . . . . Machines Dismantled . | . . . . . Machines Sabotaged . | . . . . . Overloaded Fab Kills . | . . . . . Hacking | -11 -10 -10 -7 -7 --------- Run | Yrd Mat Sub Rec Scr Machines Accessed 23 | . 5 . 7 11 Terminals 8 | . 3 . 5 . Fabricators . | . . . . . Repair Stations . | . . . . . Recycling Units 4 | . 2 . 2 . Scanalyzers . | . . . . . Garrison Access . | . . . . . Total Hacks 85 | . 12 . 19 54 Successful 67 | . 6 . 7 54 Failed 18 | . 6 . 12 . Catastrophic 6 | . 3 . 3 . Database Lockouts . | . . . . . Manual 21 | . 7 . 14 . Terminals 21 | . 6 . 15 . Fabricators . | . . . . . Repair Stations . | . . . . . Recycling Units 10 | . 6 . 4 . Scanalyzers . | . . . . . Garrison Access . | . . . . . Terminal Hacks 59 | . 2 . 3 54 Record 47 | . . . . 47 Robot Analysis 7 | . 1 . . 6 Recycling Unit Index 1 | . . . 1 . Unreport Threat 1 | . . . 1 . Locate Traps 1 | . 1 . . . Security Status 1 | . . . 1 . Proto ID Catalog 1 | . . . . 1 Fabricator Hacks . | . . . . . Repair Station Hacks . | . . . . . Recycling Unit Hacks 3 | . 2 . 1 . Report Inventory 2 | . 1 . 1 . Retrieve Components 1 | . 1 . . . Scanalyzer . | . . . . . Garrison Access Hacks . | . . . . . Unauthorized Hacks 5 | . 2 . 3 . Terminals 2 | . . . 2 . Botnet 2 | . . . 2 . Fabricators . | . . . . . Repair Stations . | . . . . . Recycling Units 3 | . 2 . 1 . Tunnel 3 | . 2 . 1 . Scanalyzers . | . . . . . Garrison Access . | . . . . . Data Cores Recovered . | . . . . . Used . | . . . . . Hacking Detections 9 | . 3 . 6 . Full Trace Events 3 | . . . 3 . Feedback Events . | . . . . . Feedback Blocked . | . . . . . Robot Schematics Acquired . | . . . . . Robots Built . | . . . . . Authchips . | . . . . . Time . | . . . . . Total Robot Build Rating . | . . . . . Part Schematics Acquired . | . . . . . Parts Built . | . . . . . Authchips . | . . . . . Time . | . . . . . Total Part Build Rating . | . . . . . Part Studies Acquired . | . . . . . Parts Repaired . | . . . . . Time . | . . . . . Parts Recycled . | . . . . . Recycled Matter . | . . . . . Retrieved Matter . | . . . . . Retrieved Components 5 | . 5 . . . Parts Scanalyzed . | . . . . . Part Schematics Acquired . | . . . . . Parts Damaged . | . . . . . Bothacking | -11 -10 -10 -7 -7 ------------ Run | Yrd Mat Sub Rec Scr Used RIF Installer . | . . . . . Robots Hacked . | . . . . . Non-combat . | . . . . . Combat . | . . . . . Robot Hacks Applied . | . . . . . Relay Couplers Released . | . . . . . Fabnet Peak Effective % . | . . . . . Robots Rewired . | . . . . . Allies Hacked . | . . . . . Hacks Repelled . | . . . . . Allies | -11 -10 -10 -7 -7 -------- Run | Yrd Mat Sub Rec Scr Total Allies . | . . . . . Largest Group . | . . . . . Highest-Rated Group . | . . . . . Highest-Rated Ally . | . . . . . Total Orders . | . . . . . Ally Attacks . | . . . . . Total Damage . | . . . . . Kills . | . . . . . Allies Corrupted . | . . . . . Allies Melted . | . . . . . Intel | -11 -10 -10 -7 -7 ------- Run | Yrd Mat Sub Rec Scr Active Infowar (turns) 1237 | 27 347 851 12 . Seismic 1237 | 27 347 851 12 . Robot Analysis Total 7 | . 1 . . 6 Derelict Logs Recovered 5 | . . 1 . 4 Drone Launches . | . . . . . Drone Recoveries . | . . . . . Exploration | -11 -10 -10 -7 -7 ------------- Run | Yrd Mat Sub Rec Scr Turns Passed 5142 | 131 347 1356 310 2998 Spaces Moved 3307 | 70 221 623 229 2164 Core 3 | 3 . . . . Treads 479 | 63 84 332 . . Legs 1749 | . . . . 1749 Wheels 1076 | 4 137 291 229 415 Hover . | . . . . . Flight . | . . . . . Fastest Speed 50 | 50 100 115 115 115 Average Speed 145 | 151 131 196 121 135 Slowest Speed 260 | 160 160 260 130 260 Overloaded Moves . | . . . . . Propulsion Burnouts . | . . . . . Robots Hopped . | . . . . . Potential Cave-ins . | . . . . . Cave-ins Triggered . | . . . . . Exploration Rate (%) 43 | 5 40 21 56 93 Regions Visited 4 Branch Regions 3 Pre-discovered Areas 4 | . 2 . 1 1 Known Exits Taken . | . . . . . Unknown Exits Taken 4 | 1 1 1 1 . Scrap Searched 11 | . . 2 . 9 Spaces Dug 5 | . . 1 . 4 Terrain Destroyed 30 | . 19 11 . . Melee 1 | . . 1 . . Projectile . | . . . . . AOE 29 | . 19 10 . . Terrain Rammed . | . . . . . Walls Destroyed . | . . . . . Machines Disabled . | . . . . . Actions | -11 -10 -10 -7 -7 --------- Run | Yrd Mat Sub Rec Scr Total 3518 | 85 259 693 243 2238 Wait 11 | . 11 . . . Move 3303 | 69 220 622 228 2164 Hop . | . . . . . Pick Up 36 | 5 9 8 2 12 Fast Attach 18 | 7 1 4 . 6 Attach 5 | . . 2 1 2 Detach . | . . . . . Swap 22 | 1 3 12 2 4 Drop 33 | . 4 10 1 18 Fire 46 | 3 11 30 . 2 Melee 16 | . . 5 9 2 Ram . | . . . . . Kick 1 | . . . . 1 Crush . | . . . . . Escape Stasis . | . . . . . Rewire 27 | . . . . 27 Trap . | . . . . . Miscellaneous . | . . . . . Route ------- -11/Scrapyard -10/Materials (discovered 2 exits: [*Mat] / [*Sub]) -10/Subcaves -7/Recycling -7/Scraptown (discovered 2 exits: [*Fac x2]) History --------- Turn | Location | Event 34 | -11/Scrapyard | Discovered new exit (range 16) 132 | -11/Scrapyard | Entered Materials 305 | -10/Materials | Build established: Mutant 410 | -10/Materials | Discovered new exit (range 15) 450 | -10/Materials | Discovered new exit (range 9) 479 | -10/Materials | Entered Subcaves 479 | -10/Subcaves | A Subdweller sparked back to life 480 | -10/Subcaves | Approached by a straggling Scientist 526 | -10/Subcaves | Found Prototype Device 526 | -10/Subcaves | Identified Power Bank 527 | -10/Subcaves | Attached Power Bank, gained temporary slots: Power x3 668 | -10/Subcaves | Discovered new exit (range 10) 946 | -10/Subcaves | Disturbed a concealed Subdweller 1835 | -10/Subcaves | Entered Recycling 1836 | -7/Recycling | Met a Zionite searching for Scraptown 1974 | -7/Recycling | Core integrity fell below 50% 2103 | -7/Recycling | Scanned before Scraplab entrance 2131 | -7/Recycling | Entered Scraplab 2141 | -7/Recycling | Discovered new exit (range 3) 2145 | -7/Recycling | Entered Scraptown 2397 | -7/Scraptown | Heard Great Nut preacher, LISTEN AND RECITE! 2426 | -7/Scraptown | Visited Fellowship of the Rings 2466 | -7/Scraptown | Visited UFD Registry 2466 | -7/Scraptown | Registered with UFD as "Longchip" 2504 | -7/Scraptown | Visited Symbiants 2544 | -7/Scraptown | Visited Assassins FH 2598 | -7/Scraptown | Visited Bundlers 2750 | -7/Scraptown | Scanned Subdweller tech in exchange for log data 2754 | -7/Scraptown | Learned Research stockpile data 2756 | -7/Scraptown | Learned location of Zion (-6) 2758 | -7/Scraptown | Learned Factory emergency access door positions 2759 | -7/Scraptown | Learned Factory garrison access intel 2813 | -7/Scraptown | Visited Spacefarers 2874 | -7/Scraptown | Visited CPS Storage 2900 | -7/Scraptown | Visited Cyclists 2925 | -7/Scraptown | Entered Cyclist Reading Room 3398 | -7/Scraptown | Discovered new exit (range 5) 3460 | -7/Scraptown | Guru changed UFD alias to "Megabox" 3601 | -7/Scraptown | Visited Abandonware Association 3624 | -7/Scraptown | Learned abandonware demo "REPAIR.EXE" 3661 | -7/Scraptown | Visited Science Guys 3715 | -7/Scraptown | Visited LU-1G1's Boring Crew 3975 | -7/Scraptown | Visited Scrap Suit Storage 4017 | -7/Scraptown | Visited Chapter 10 4068 | -7/Scraptown | Visited Scrapoid Research Area 4147 | -7/Scraptown | Visited Cartography Club 4235 | -7/Scraptown | Found Surveybot 17 Chip 4354 | -7/Scraptown | Visited Derelict Rescue Squad 4362 | -7/Scraptown | Found DRS Beacon 4419 | -7/Scraptown | Visited Research Penetration Think Tank 4450 | -7/Scraptown | Visited Analyses Database 4662 | -7/Scraptown | Found Scrap Suit 4770 | -7/Scraptown | Discovered new exit (range 3) 5010 | -7/Scraptown | Met Optimus 5010 | -7/Scraptown | Accepted into 0bPrime 5115 | -7/Scraptown | Attacked by Scraptown defenders 5124 | -7/Scraptown | Found Prototype Special Weapon 5124 | -7/Scraptown | Identified LU-1G1's Laser Shovel 5130 | -7/Scraptown | Core integrity fell below 20% 5143 | -7/Scraptown | Destroyed by QE-ZH9(x) with Makeshift Spear Last Messages --------------- Ripteeth. 05139_ QL-S6M(r) follow-up attacks with Ripteeth. 05140_ Penetrated by Slug. 05140_ Slug penetrates 47-WEW(r). 05140_ Penetrated by Slug. 05140_ 47-WEW(r) destroyed. 05140_ QL-S6M(r) follow-up attacks with Ripteeth. 05142_ BO-VUK(p): "Triiiboooooorg!" 05142_ Reactive Plating destroyed. 05142_ Penetrated by Slug. 05142_ Slug penetrates Earth. 05142_ Beam penetrates Enclosure. 05142_ Enclosure disintegrates. 05142_ Beam penetrates QE-ZH9(x). 05142_ Earth disintegrates. 05143_ 2B-7H4(h): "Go back to where you came from you... uncivilized cave monster!" [Achievement: I Think I Know What's Going On] Map ----- +----------------------------------------------------+ | ""# "" "" X"#??????###"" "## ""#??? | | "?# " " ######### #"" "## ""#??? | | "" "" ""#??? | | "" "" "## "#??? | | ""# " " ######### #"" "## ""#??? | | ""# "" "" ""#??????###"" "## " """"#??? | | ""# "" "" ##????????#"" "##########??? | | ""# X"#????????#"" "#???????????? | | ""# ##????????#"" "#???????????? | | ""###### ################"" "#########???? | | """""""""""""""""""""""""""" "## """"#???? | | """""""""""""""""""""""""""" """"#???? | | c "## " "#???? | | "## ""#???? | | x "## "#???? | | ## X"#???? | | p E # " "#???? | | """ """"""""""" """""""""""E"""""" ## """"#???? | | ### ########### ########### ####;# #########???? | | ##" ## p ## #???????????? | | ## "## # ## #???????????? | | """"" ##"" "" "&## # h # ## #???????????? | | "###" ##"" "" "&## # # ## #???????????? | | "#X#" ##"" [## ## =##j ## #???????????? | | "# #" ##"""" ""##hrx%/ ## ############? | | ##""" """"## @p"" ## #? | | " " " ##" "!""## 3r" j ## ##? | | """"""""##""" """"## j "/" ## #? | | ##########""""" X """## # # ## #? | | ?????????#"""""""""""#### ######## #? | | ?????????#############?#;##??????# ############? | | ########?####?#####????########### #####???????? | | ##"""##"""##"""##"""##"""##"|"# """"#???????? | | "" ## ""## ""##" "##"""##""|##" # "" "#???????? | | "" ] "#???????? | | "" ! " "#???????? | | "" !! ! """"#???????? | | "" ##"""##"""##""|##" "##!!%##"" ## ######???????? | | ##"""##"""##"""##"""##"""##"""####????????????? | | ##################################???????????????? | | ?????????????????????????????????????????????????? | | ?????????????????????????????????????????????????? | | ?????????????????????????????????????????????????? | | ?????????????????????????????????????????????????? | | ?????????????????????????????????????????????????? | | ?????????????????????????????????????????????????? | | ?????????????????????????????????????????????????? | | ?????????????????????????????????????????????????? | | ?????????????????????????????????????????????????? | | ?????????????????????????????????????????????????? | +----------------------------------------------------+ Best States ------------- Heat Dissipation 25 Energy Generation 25 Energy Capacity 375 Matter Stores 300 Matter Capacity 300 Sight Range 16 Terrain Scan Density 10 Armor Coverage 150 Resistance: KI 20 Evasion (%) 55 Recoil Reduction 1 Item Schematics ----------------- None Robot Schematics ------------------ None Fabricated ------------ Nothing Repaired ---------- Nothing Studied --------- None Alien Tech Used ----------------- None Achievements -------------- Deductive Reasoning I Think I Know What's Going On Longdome?! Challenges ------------ None Game ------ Seed BackupSensorMultitool Manual? 0 Play Time 00:58:29 Cumulative 118.7 hours Start 2025.12.21 @ 23:49:26 End 2025.12.22 @ 01:06:52 Sessions 1 Manual Loads 0 Difficulty Rogue Special Mode None Game No. 52 Rogue 52 Adventurer 0 Explorer 0 Win Type - Total 5 Types 5/0/0/0/0/0/0/0/0/0 Lore% 53 Gallery% 47 Achievement% 31 Wizard Run 0 Options --------- Layout 1 ASCII 0 Keyboard 0 Movement Arrows Keybinds 0 Fullscreen 1 Font 24/Terminus Map View 50x35 Zoom Use 0% Tactical HUD 1 Map Filters NONE Filters NONE Steam 1 RUN: 253f8d51-d09b-4915-ad6a-d82cc1d68a27